[Event "*** SCC Grand Prix: Titled Tuesday Blitz"]
[Site "Chess.com"]
[Date "2020.08.11"]
[Round "1"]
[White "hellokostya"]
[Black "Msb2"]
[Result "0-1"]
[WhiteElo "2397"]
[BlackElo "2788"]
[TimeControl "180+1"]
[EndTime "10:07:03 PDT"]
[Termination "Msb2 won on time"]

1. d4 {[%clk 0:02:52.9]} 1... d5 {[%clk 0:03:00.1]} 2. c4 {[%clk 0:02:49.5]}
2... c6 {[%clk 0:03:00.2]} 3. Nf3 {[%clk 0:02:47.7]} 3... Nf6 {[%clk 0:02:59.7]}
4. e3 {[%clk 0:02:46.4]} 4... Bf5 {[%clk 0:02:59.5]} 5. Nc3 {[%clk 0:02:45.8]}
5... e6 {[%clk 0:03:00.1]} 6. Nh4 {[%clk 0:02:45.7]} 6... Be4 {[%clk 0:03:00.8]}
7. f3 {[%clk 0:02:42.7]} 7... Bg6 {[%clk 0:03:01.4]} 8. Qb3 {[%clk 0:02:41.3]}
8... Qc7 {[%clk 0:03:01.9]} 9. Bd2 {[%clk 0:02:39.2]} 9... Be7 {[%clk
0:03:02.4]} 10. g3 {[%clk 0:02:31.9]} 10... O-O {[%clk 0:02:59.5]} 11. Be2
{[%clk 0:02:22.7]} 11... dxc4 {[%clk 0:02:57]} 12. Bxc4 {[%clk 0:02:21.7]} 12...
Nbd7 {[%clk 0:02:49.2]} 13. O-O {[%clk 0:02:12.7]} 13... e5 {[%clk 0:02:49.5]}
14. Nxg6 {[%clk 0:02:04.3]} 14... hxg6 {[%clk 0:02:50.4]} 15. Qc2 {[%clk
0:01:56.3]} 15... exd4 {[%clk 0:02:49.8]} 16. exd4 {[%clk 0:01:55.1]} 16... Nb6
{[%clk 0:02:46.5]} 17. Bb3 {[%clk 0:01:55.1]} 17... Qd7 {[%clk 0:02:42.3]} 18.
Be3 {[%clk 0:01:47.3]} 18... Nfd5 {[%clk 0:02:40.7]} 19. Bf2 {[%clk 0:01:27.8]}
19... Rae8 {[%clk 0:02:31.6]} 20. a3 {[%clk 0:01:25.9]} 20... Bd6 {[%clk
0:02:18.8]} 21. Ne4 {[%clk 0:01:23.2]} 21... Re7 {[%clk 0:02:13.3]} 22. Rae1
{[%clk 0:01:17.7]} 22... Rfe8 {[%clk 0:02:12.2]} 23. Kg2 {[%clk 0:01:04.2]}
23... Bb8 {[%clk 0:01:45.4]} 24. Qd3 {[%clk 0:00:57.5]} 24... Qf5 {[%clk
0:01:40.1]} 25. Qd2 {[%clk 0:00:46.1]} 25... a5 {[%clk 0:01:15.5]} 26. Bc2
{[%clk 0:00:41.2]} 26... Nc4 {[%clk 0:01:12.5]} 27. Qc1 {[%clk 0:00:40.6]} 27...
Qc8 {[%clk 0:01:05.3]} 28. b3 {[%clk 0:00:39.6]} 28... Nd6 {[%clk 0:01:05.4]}
29. Qd2 {[%clk 0:00:37.9]} 29... Qd8 {[%clk 0:01:03.3]} 30. Re2 {[%clk
0:00:33.9]} 30... Nf5 {[%clk 0:00:56.1]} 31. Rfe1 {[%clk 0:00:31.4]} 31... b6
{[%clk 0:00:47.4]} 32. b4 {[%clk 0:00:28.5]} 32... axb4 {[%clk 0:00:46.8]} 33.
axb4 {[%clk 0:00:29.4]} 33... Qd7 {[%clk 0:00:46.5]} 34. Bb3 {[%clk 0:00:27.3]}
34... Nh4+ {[%clk 0:00:45.1]} 35. gxh4 {[%clk 0:00:15.7]} 35... Nf4+ {[%clk
0:00:45.5]} 36. Kh1 {[%clk 0:00:15.9]} 36... Qh3 {[%clk 0:00:41.1]} 37. Bg3
{[%clk 0:00:15.9]} 37... Nxe2 {[%clk 0:00:40.3]} 38. Rxe2 {[%clk 0:00:15.8]}
38... Bxg3 {[%clk 0:00:33.5]} 39. Nxg3 {[%clk 0:00:03.5]} 39... Rxe2 {[%clk
0:00:32.9]} 40. Nxe2 {[%clk 0:00:03.4]} 40... Qxf3+ {[%clk 0:00:33.2]} 41. Kg1
{[%clk 0:00:03.1]} 41... Rxe2 {[%clk 0:00:34.1]} 0-1

[Event "*** SCC Grand Prix: Titled Tuesday Blitz"]
[Site "Chess.com"]
[Date "2020.08.11"]
[Round "1"]
[White "Chessbard1972"]
[Black "timator"]
[Result "0-1"]
[WhiteElo "2342"]
[BlackElo "2695"]
[TimeControl "180+1"]
[EndTime "10:07:03 PDT"]
[Termination "timator won by checkmate"]

1. e4 {[%clk 0:03:00.7]} 1... c5 {[%clk 0:02:54.4]} 2. d4 {[%clk 0:02:59.7]}
2... cxd4 {[%clk 0:02:54.2]} 3. c3 {[%clk 0:02:57]} 3... Nf6 {[%clk 0:02:52.8]}
4. e5 {[%clk 0:02:56.4]} 4... Nd5 {[%clk 0:02:52.7]} 5. Bc4 {[%clk 0:02:56.8]}
5... e6 {[%clk 0:02:50.2]} 6. Bxd5 {[%clk 0:02:55]} 6... exd5 {[%clk 0:02:49.9]}
7. Qxd4 {[%clk 0:02:54.9]} 7... Qa5 {[%clk 0:02:33.8]} 8. b4 {[%clk 0:02:43.1]}
8... Qb5 {[%clk 0:02:33.8]} 9. a4 {[%clk 0:02:38.6]} 9... Qc6 {[%clk 0:02:26.4]}
10. Nf3 {[%clk 0:02:31.9]} 10... b6 {[%clk 0:02:25.8]} 11. O-O {[%clk
0:02:29.7]} 11... Bb7 {[%clk 0:02:26]} 12. Bf4 {[%clk 0:02:26]} 12... Be7 {[%clk
0:02:25]} 13. Nbd2 {[%clk 0:02:21.1]} 13... O-O {[%clk 0:02:23.9]} 14. Nb3
{[%clk 0:02:16.8]} 14... Qg6 {[%clk 0:02:21.5]} 15. Rfe1 {[%clk 0:02:12.4]}
15... Nc6 {[%clk 0:02:15.6]} 16. Qd2 {[%clk 0:02:12.1]} 16... d4 {[%clk
0:02:07.4]} 17. b5 {[%clk 0:01:21]} 17... Na5 {[%clk 0:01:54.6]} 18. Nbxd4
{[%clk 0:01:16.8]} 18... Rac8 {[%clk 0:01:54.3]} 19. Bg3 {[%clk 0:01:13.4]}
19... h5 {[%clk 0:01:52.6]} 20. h4 {[%clk 0:01:12.5]} 20... Nc4 {[%clk
0:01:41.3]} 21. Qf4 {[%clk 0:01:11.6]} 21... Nb2 {[%clk 0:01:33.2]} 22. Re3
{[%clk 0:01:09.3]} 22... Nc4 {[%clk 0:01:21.8]} 23. Nf5 {[%clk 0:01:06.9]} 23...
Rfe8 {[%clk 0:01:14.2]} 24. Rd3 {[%clk 0:01:05]} 24... Bf8 {[%clk 0:00:59.4]}
25. Re1 {[%clk 0:01:04.1]} 25... Bxf3 {[%clk 0:00:41.6]} 26. Rxf3 {[%clk
0:01:01.5]} 26... Rc5 {[%clk 0:00:33.4]} 27. Rd3 {[%clk 0:00:58.9]} 27... Nxe5
{[%clk 0:00:29.1]} 28. Rde3 {[%clk 0:00:55.2]} 28... d6 {[%clk 0:00:29.4]} 29.
Nd4 {[%clk 0:00:53.2]} 29... Rec8 {[%clk 0:00:27.3]} 30. Nf5 {[%clk 0:00:50.5]}
30... Rc4 {[%clk 0:00:23.8]} 31. Re4 {[%clk 0:00:49.8]} 31... Rxc3 {[%clk
0:00:23.9]} 32. Qd2 {[%clk 0:00:49.3]} 32... Qxf5 {[%clk 0:00:22.3]} 33. Rf4
{[%clk 0:00:48.8]} 33... Qg6 {[%clk 0:00:20.6]} 34. Qd5 {[%clk 0:00:48.7]} 34...
Rxg3 {[%clk 0:00:20.3]} 35. fxg3 {[%clk 0:00:47.6]} 35... Qxg3 {[%clk
0:00:21.2]} 36. Ref1 {[%clk 0:00:47.8]} 36... Qg6 {[%clk 0:00:17.5]} 37. Qb7
{[%clk 0:00:46.5]} 37... Rc2 {[%clk 0:00:16.4]} 38. R4f2 {[%clk 0:00:43.5]}
38... Rxf2 {[%clk 0:00:16.5]} 39. Rxf2 {[%clk 0:00:43.6]} 39... d5 {[%clk
0:00:17.4]} 40. Re2 {[%clk 0:00:42.4]} 40... Bc5+ {[%clk 0:00:16.8]} 41. Kf1
{[%clk 0:00:40.9]} 41... Qf5+ {[%clk 0:00:15.2]} 42. Ke1 {[%clk 0:00:40.9]}
42... Nd3+ {[%clk 0:00:15.4]} 43. Kd2 {[%clk 0:00:40.6]} 43... Nf4 {[%clk
0:00:15.7]} 44. Qb8+ {[%clk 0:00:36.2]} 44... Kh7 {[%clk 0:00:15.5]} 45. Re5
{[%clk 0:00:35.6]} 45... Qd3+ {[%clk 0:00:14.8]} 46. Kc1 {[%clk 0:00:34.8]}
46... Ba3# {[%clk 0:00:14.6]} 0-1

[Event "*** SCC Grand Prix: Titled Tuesday Blitz"]
[Site "Chess.com"]
[Date "2020.08.11"]
[Round "1"]
[White "dosto07"]
[Black "Alexander_Donchenko"]
[Result "0-1"]
[WhiteElo "2303"]
[BlackElo "2648"]
[TimeControl "180+1"]
[EndTime "10:07:03 PDT"]
[Termination "Alexander_Donchenko won on time"]

1. e4 {[%clk 0:03:00.3]} 1... Nf6 {[%clk 0:02:57.9]} 2. e5 {[%clk 0:02:59.8]}
2... Nd5 {[%clk 0:02:58.3]} 3. d4 {[%clk 0:03:00.3]} 3... d6 {[%clk 0:02:58.8]}
4. Nf3 {[%clk 0:03:00]} 4... Bg4 {[%clk 0:02:57.6]} 5. Be2 {[%clk 0:02:58.9]}
5... e6 {[%clk 0:02:57.1]} 6. O-O {[%clk 0:02:57.7]} 6... Be7 {[%clk 0:02:55.2]}
7. c4 {[%clk 0:02:54.2]} 7... Nb6 {[%clk 0:02:55]} 8. Nc3 {[%clk 0:02:50.1]}
8... O-O {[%clk 0:02:53.9]} 9. h3 {[%clk 0:02:40.1]} 9... Bh5 {[%clk 0:02:51.8]}
10. exd6 {[%clk 0:02:39.4]} 10... cxd6 {[%clk 0:02:51.1]} 11. b3 {[%clk
0:02:22.8]} 11... d5 {[%clk 0:02:46.3]} 12. c5 {[%clk 0:02:21.8]} 12... N6d7
{[%clk 0:02:46.3]} 13. Be3 {[%clk 0:02:15.1]} 13... Nc6 {[%clk 0:02:45.7]} 14.
b4 {[%clk 0:02:10.7]} 14... Nxb4 {[%clk 0:02:42.4]} 15. Rb1 {[%clk 0:02:10.2]}
15... Nc6 {[%clk 0:02:25.9]} 16. Rxb7 {[%clk 0:02:09.7]} 16... Rb8 {[%clk
0:02:21.4]} 17. Rxb8 {[%clk 0:02:04.9]} 17... Qxb8 {[%clk 0:02:15.7]} 18. Qa4
{[%clk 0:02:04.8]} 18... Qc7 {[%clk 0:01:59.8]} 19. Rb1 {[%clk 0:01:54.6]} 19...
Rb8 {[%clk 0:01:54.6]} 20. Rxb8+ {[%clk 0:01:50.5]} 20... Ndxb8 {[%clk
0:01:55.5]} 21. g3 {[%clk 0:01:30.7]} 21... Bf6 {[%clk 0:01:50.2]} 22. Kg2
{[%clk 0:01:23.7]} 22... Qa5 {[%clk 0:01:41.1]} 23. Qxa5 {[%clk 0:01:19]} 23...
Nxa5 {[%clk 0:01:42]} 24. g4 {[%clk 0:01:10.1]} 24... Bg6 {[%clk 0:01:41.8]} 25.
g5 {[%clk 0:01:03.6]} 25... Bd8 {[%clk 0:01:40.2]} 26. Ne5 {[%clk 0:00:59]}
26... Nac6 {[%clk 0:01:25]} 27. Nxc6 {[%clk 0:00:52.7]} 27... Nxc6 {[%clk
0:01:24.7]} 28. Bb5 {[%clk 0:00:51.3]} 28... Ne7 {[%clk 0:01:16.8]} 29. Bf4
{[%clk 0:00:43.5]} 29... Ba5 {[%clk 0:01:10.3]} 30. Na4 {[%clk 0:00:29]} 30...
f6 {[%clk 0:00:52.4]} 31. gxf6 {[%clk 0:00:20.5]} 31... gxf6 {[%clk 0:00:53.3]}
32. c6 {[%clk 0:00:20.9]} 32... Be8 {[%clk 0:00:50.7]} 33. Nc5 {[%clk
0:00:10.6]} 33... Bxc6 {[%clk 0:00:35.7]} 34. Bxc6 {[%clk 0:00:06.7]} 34... Nxc6
{[%clk 0:00:36.6]} 35. Nxe6 {[%clk 0:00:07.1]} 35... Kf7 {[%clk 0:00:37.3]} 36.
Nc7 {[%clk 0:00:04.5]} 36... Bxc7 {[%clk 0:00:35.8]} 37. Bxc7 {[%clk 0:00:05.4]}
37... Nxd4 {[%clk 0:00:36.3]} 38. Bb8 {[%clk 0:00:04.7]} 38... a6 {[%clk
0:00:35.1]} 39. Kg3 {[%clk 0:00:02]} 39... Ke6 {[%clk 0:00:32.2]} 0-1

[Event "*** SCC Grand Prix: Titled Tuesday Blitz"]
[Site "Chess.com"]
[Date "2020.08.11"]
[Round "1"]
[White "volcanoexplorer"]
[Black "EndGameDestroyer"]
[Result "1-0"]
[WhiteElo "2596"]
[BlackElo "2241"]
[TimeControl "180+1"]
[EndTime "10:07:03 PDT"]
[Termination "volcanoexplorer won on time"]

1. e4 {[%clk 0:03:00.7]} 1... Nc6 {[%clk 0:02:59.5]} 2. Nf3 {[%clk 0:02:59.8]}
2... d6 {[%clk 0:02:59.2]} 3. d4 {[%clk 0:02:59.8]} 3... Nf6 {[%clk 0:02:59.2]}
4. c3 {[%clk 0:02:58.6]} 4... e5 {[%clk 0:02:55.8]} 5. Bd3 {[%clk 0:02:57.3]}
5... Bg4 {[%clk 0:02:54]} 6. Be3 {[%clk 0:02:50.9]} 6... d5 {[%clk 0:02:46.7]}
7. Nbd2 {[%clk 0:01:50.4]} 7... exd4 {[%clk 0:02:29.2]} 8. cxd4 {[%clk
0:01:47.6]} 8... dxe4 {[%clk 0:02:13.5]} 9. Nxe4 {[%clk 0:01:47]} 9... Bb4+
{[%clk 0:02:10.4]} 10. Nc3 {[%clk 0:01:04.7]} 10... O-O {[%clk 0:01:48.1]} 11.
O-O {[%clk 0:00:58.2]} 11... Nd5 {[%clk 0:01:31.3]} 12. Ne4 {[%clk 0:00:44.9]}
12... Re8 {[%clk 0:00:53.5]} 13. h3 {[%clk 0:00:39.5]} 13... Bh5 {[%clk
0:00:51.4]} 14. Bg5 {[%clk 0:00:21.4]} 14... Qd7 {[%clk 0:00:43.5]} 15. Nc5
{[%clk 0:00:16.9]} 15... Qc8 {[%clk 0:00:12.3]} 16. g4 {[%clk 0:00:15.8]} 16...
Bg6 {[%clk 0:00:12]} 17. Bxg6 {[%clk 0:00:16]} 17... hxg6 {[%clk 0:00:11.9]} 18.
a3 {[%clk 0:00:16.6]} 18... Bxc5 {[%clk 0:00:10.6]} 19. dxc5 {[%clk 0:00:17.5]}
19... Ne5 {[%clk 0:00:10.6]} 20. Qxd5 {[%clk 0:00:16.7]} 20... Nxf3+ {[%clk
0:00:09.6]} 21. Qxf3 {[%clk 0:00:17.6]} 21... c6 {[%clk 0:00:09.6]} 22. Rfe1
{[%clk 0:00:18]} 22... Qd7 {[%clk 0:00:09.1]} 23. Bf4 {[%clk 0:00:18.2]} 23...
Re6 {[%clk 0:00:07.9]} 24. Rxe6 {[%clk 0:00:17.3]} 24... Qxe6 {[%clk 0:00:08.8]}
25. Qe3 {[%clk 0:00:17.8]} 25... Qd5 {[%clk 0:00:08.5]} 26. Bd6 {[%clk
0:00:17.9]} 26... Rd8 {[%clk 0:00:07.2]} 27. Re1 {[%clk 0:00:18]} 27... b6
{[%clk 0:00:06.4]} 28. b4 {[%clk 0:00:17.8]} 28... bxc5 {[%clk 0:00:06]} 29.
bxc5 {[%clk 0:00:18.7]} 29... Qa2 {[%clk 0:00:05.2]} 30. Qe7 {[%clk 0:00:17.8]}
30... Rc8 {[%clk 0:00:04.7]} 31. Qd7 {[%clk 0:00:18.1]} 31... Ra8 {[%clk
0:00:03.7]} 32. Qxc6 {[%clk 0:00:18.4]} 32... Rd8 {[%clk 0:00:03.1]} 33. Qf3
{[%clk 0:00:17.4]} 1-0

[Event "*** SCC Grand Prix: Titled Tuesday Blitz"]
[Site "Chess.com"]
[Date "2020.08.11"]
[Round "1"]
[White "gagtemp"]
[Black "MartinMatthiesen"]
[Result "1-0"]
[WhiteElo "1966"]
[BlackElo "2453"]
[TimeControl "180+1"]
[EndTime "10:07:06 PDT"]
[Termination "gagtemp won on time"]

1. e4 {[%clk 0:02:59.9]} 1... c5 {[%clk 0:02:57.3]} 2. Nf3 {[%clk 0:02:59.3]}
2... d6 {[%clk 0:02:56.4]} 3. d4 {[%clk 0:02:59]} 3... cxd4 {[%clk 0:02:56.5]}
4. Nxd4 {[%clk 0:02:59.9]} 4... Nf6 {[%clk 0:02:56.9]} 5. Nc3 {[%clk 0:02:59.7]}
5... a6 {[%clk 0:02:57.1]} 6. Be3 {[%clk 0:02:59.4]} 6... e5 {[%clk 0:02:56]} 7.
Nb3 {[%clk 0:02:58.7]} 7... Be6 {[%clk 0:02:55.4]} 8. f3 {[%clk 0:02:59]} 8...
h5 {[%clk 0:02:54.9]} 9. Qd2 {[%clk 0:02:58.8]} 9... Nbd7 {[%clk 0:02:53.1]} 10.
Be2 {[%clk 0:02:58.3]} 10... Be7 {[%clk 0:02:48.7]} 11. Nd5 {[%clk 0:02:58.2]}
11... Nxd5 {[%clk 0:02:47.9]} 12. exd5 {[%clk 0:02:59.1]} 12... Bf5 {[%clk
0:02:48.4]} 13. O-O {[%clk 0:02:56.5]} 13... O-O {[%clk 0:02:47.5]} 14. Na5
{[%clk 0:02:54.2]} 14... Qc8 {[%clk 0:02:46.6]} 15. c4 {[%clk 0:02:48.5]} 15...
Bd8 {[%clk 0:02:44.1]} 16. Rac1 {[%clk 0:02:19.2]} 16... Bg6 {[%clk 0:02:34.3]}
17. Bd3 {[%clk 0:02:08.3]} 17... f5 {[%clk 0:02:29.9]} 18. b4 {[%clk 0:01:57]}
18... Bxa5 {[%clk 0:02:28.2]} 19. bxa5 {[%clk 0:01:56.8]} 19... Nc5 {[%clk
0:02:28.8]} 20. Bb1 {[%clk 0:01:45.4]} 20... Qc7 {[%clk 0:02:12.5]} 21. Kh1
{[%clk 0:01:35.2]} 21... Rab8 {[%clk 0:01:59.8]} 22. Bxc5 {[%clk 0:01:32.2]}
22... Qxc5 {[%clk 0:01:58.7]} 23. Qg5 {[%clk 0:01:31.8]} 23... Rf6 {[%clk
0:01:40.3]} 24. g4 {[%clk 0:01:22.8]} 24... Rbf8 {[%clk 0:01:00.3]} 25. gxh5
{[%clk 0:01:17.7]} 25... Bh7 {[%clk 0:00:58.9]} 26. Rg1 {[%clk 0:01:12.7]} 26...
R8f7 {[%clk 0:00:56]} 27. h6 {[%clk 0:00:59.7]} 27... Rg6 {[%clk 0:00:45.1]} 28.
Qd8+ {[%clk 0:00:48.1]} 28... Rf8 {[%clk 0:00:44.7]} 29. Qe7 {[%clk 0:00:43.5]}
29... Qe3 {[%clk 0:00:28.2]} 30. Rxg6 {[%clk 0:00:31.1]} 30... Qxc1+ {[%clk
0:00:27.9]} 31. Kg2 {[%clk 0:00:16.6]} 31... Qd2+ {[%clk 0:00:07.9]} 32. Kh3
{[%clk 0:00:15.1]} 1-0

[Event "*** SCC Grand Prix: Titled Tuesday Blitz"]
[Site "Chess.com"]
[Date "2020.08.11"]
[Round "1"]
[White "Andreikka"]
[Black "sergivila"]
[Result "0-1"]
[WhiteElo "2829"]
[BlackElo "2429"]
[TimeControl "180+1"]
[EndTime "10:07:08 PDT"]
[Termination "sergivila won by resignation"]

1. c4 {[%clk 0:02:59]} 1... e6 {[%clk 0:02:59.4]} 2. Nc3 {[%clk 0:02:58.3]} 2...
d5 {[%clk 0:02:59.1]} 3. d4 {[%clk 0:02:58.2]} 3... Bb4 {[%clk 0:02:58.1]} 4. a3
{[%clk 0:02:58]} 4... Bxc3+ {[%clk 0:02:57.4]} 5. bxc3 {[%clk 0:02:58.9]} 5...
Nf6 {[%clk 0:02:56.6]} 6. e3 {[%clk 0:02:58.4]} 6... c6 {[%clk 0:02:55.8]} 7.
Bd3 {[%clk 0:02:52.9]} 7... O-O {[%clk 0:02:54.8]} 8. Ne2 {[%clk 0:02:47.2]}
8... b6 {[%clk 0:02:54.5]} 9. cxd5 {[%clk 0:02:47]} 9... cxd5 {[%clk 0:02:53.9]}
10. O-O {[%clk 0:02:46.6]} 10... Ba6 {[%clk 0:02:52.7]} 11. f3 {[%clk
0:02:46.3]} 11... Qc8 {[%clk 0:02:49.4]} 12. Bb2 {[%clk 0:02:45.4]} 12... Bxd3
{[%clk 0:02:44.7]} 13. Qxd3 {[%clk 0:02:42.5]} 13... Nc6 {[%clk 0:02:37.8]} 14.
e4 {[%clk 0:02:29.5]} 14... Na5 {[%clk 0:02:34.1]} 15. e5 {[%clk 0:02:29.9]}
15... Nd7 {[%clk 0:02:33.4]} 16. Ng3 {[%clk 0:02:23.2]} 16... Qc4 {[%clk
0:02:21.7]} 17. Qe3 {[%clk 0:01:52.5]} 17... Rac8 {[%clk 0:02:06.6]} 18. Nh5
{[%clk 0:01:46.4]} 18... f6 {[%clk 0:01:46.5]} 19. exf6 {[%clk 0:01:42.2]} 19...
Nxf6 {[%clk 0:01:35.9]} 20. Qxe6+ {[%clk 0:01:40.4]} 20... Kh8 {[%clk
0:01:35.3]} 21. Nxf6 {[%clk 0:01:39.3]} 21... Rxf6 {[%clk 0:01:35.5]} 22. Qe7
{[%clk 0:01:17.3]} 22... Qb5 {[%clk 0:01:21.7]} 23. Bc1 {[%clk 0:01:05.2]} 23...
Re8 {[%clk 0:01:10.2]} 24. Qb4 {[%clk 0:01:00.8]} 24... Qd3 {[%clk 0:01:01.7]}
25. Bg5 {[%clk 0:00:47.7]} 25... Rfe6 {[%clk 0:01:00.2]} 26. Rad1 {[%clk
0:00:48]} 26... Qf5 {[%clk 0:00:55.4]} 27. Bc1 {[%clk 0:00:41.4]} 27... Nc4
{[%clk 0:00:52.9]} 28. Qa4 {[%clk 0:00:33.2]} 28... Re2 {[%clk 0:00:49.1]} 29.
Qc6 {[%clk 0:00:27.4]} 29... Qc2 {[%clk 0:00:39.9]} 30. Kh1 {[%clk 0:00:27.4]}
30... h6 {[%clk 0:00:24.3]} 31. Bf4 {[%clk 0:00:23.4]} 31... Kh7 {[%clk
0:00:23.4]} 32. Qxd5 {[%clk 0:00:22]} 32... Qxd1 {[%clk 0:00:20.3]} 33. Qf5+
{[%clk 0:00:08.2]} 33... Kh8 {[%clk 0:00:19.7]} 34. Kg1 {[%clk 0:00:07.1]} 34...
Re1 {[%clk 0:00:19.3]} 0-1

[Event "*** SCC Grand Prix: Titled Tuesday Blitz"]
[Site "Chess.com"]
[Date "2020.08.11"]
[Round "1"]
[White "Ariadna_Atreides"]
[Black "zmeeed67"]
[Result "0-1"]
[WhiteElo "2032"]
[BlackElo "2490"]
[TimeControl "180+1"]
[EndTime "10:07:09 PDT"]
[Termination "zmeeed67 won on time"]

1. d4 {[%clk 0:03:00.9]} 1... d5 {[%clk 0:02:59.3]} 2. Nf3 {[%clk 0:03:01]} 2...
Nf6 {[%clk 0:02:58.9]} 3. e3 {[%clk 0:03:00.6]} 3... c5 {[%clk 0:02:58.4]} 4.
Bd3 {[%clk 0:02:59.8]} 4... Nc6 {[%clk 0:02:58.3]} 5. O-O {[%clk 0:02:59.6]}
5... Bg4 {[%clk 0:02:55.8]} 6. dxc5 {[%clk 0:02:37.5]} 6... e6 {[%clk
0:02:50.8]} 7. a3 {[%clk 0:02:33.9]} 7... Bxc5 {[%clk 0:02:50.3]} 8. b4 {[%clk
0:02:33.5]} 8... Bd6 {[%clk 0:02:50.5]} 9. Bb2 {[%clk 0:02:33.3]} 9... a6 {[%clk
0:02:45.9]} 10. h3 {[%clk 0:02:32.8]} 10... h5 {[%clk 0:02:44.9]} 11. Nbd2
{[%clk 0:02:31.6]} 11... Rc8 {[%clk 0:02:42.3]} 12. c4 {[%clk 0:02:28.3]} 12...
Bb8 {[%clk 0:02:35.3]} 13. Be2 {[%clk 0:01:56.4]} 13... Qd6 {[%clk 0:02:23]} 14.
c5 {[%clk 0:01:44]} 14... Qc7 {[%clk 0:02:22]} 15. Qa4 {[%clk 0:01:21.6]} 15...
Kf8 {[%clk 0:02:12.5]} 16. b5 {[%clk 0:00:53]} 16... axb5 {[%clk 0:02:08.7]} 17.
Bxb5 {[%clk 0:00:52.9]} 17... Bxf3 {[%clk 0:02:07.4]} 18. Nxf3 {[%clk
0:00:51.8]} 18... Rh6 {[%clk 0:02:02]} 19. Bxc6 {[%clk 0:00:49.2]} 19... Qxc6
{[%clk 0:02:02.9]} 20. Qxc6 {[%clk 0:00:38.4]} 20... Rxc6 {[%clk 0:02:03.8]} 21.
Rfc1 {[%clk 0:00:29.4]} 21... Ne4 {[%clk 0:02:03.8]} 22. Be5 {[%clk 0:00:20.7]}
22... Ba7 {[%clk 0:01:57.9]} 23. Rab1 {[%clk 0:00:20.4]} 23... Nxc5 {[%clk
0:01:39.1]} 24. Rxb7 {[%clk 0:00:19]} 24... Nxb7 {[%clk 0:01:23.2]} 25. Rxc6
{[%clk 0:00:19.9]} 25... f6 {[%clk 0:01:12.9]} 26. Rc8+ {[%clk 0:00:13.7]} 26...
Nd8 {[%clk 0:01:03]} 27. Rc7 {[%clk 0:00:14.6]} 27... fxe5 {[%clk 0:00:59.1]}
28. Rxa7 {[%clk 0:00:12.4]} 28... e4 {[%clk 0:00:57]} 29. Ne5 {[%clk 0:00:08.4]}
29... Ke8 {[%clk 0:00:56.6]} 30. a4 {[%clk 0:00:07.4]} 30... Rf6 {[%clk
0:00:54.9]} 31. a5 {[%clk 0:00:06.7]} 31... Rf5 {[%clk 0:00:55.4]} 32. Ng6
{[%clk 0:00:03.9]} 32... Rf7 {[%clk 0:00:37.3]} 33. Ra8 {[%clk 0:00:03.1]} 33...
Rc7 {[%clk 0:00:28.9]} 34. a6 {[%clk 0:00:02.4]} 34... Rc1+ {[%clk 0:00:28.7]}
35. Kh2 {[%clk 0:00:02.7]} 35... Kd7 {[%clk 0:00:28.8]} 36. a7 {[%clk
0:00:02.1]} 36... Ra1 {[%clk 0:00:27.4]} 37. Ne5+ {[%clk 0:00:01]} 37... Kc7
{[%clk 0:00:27.8]} 0-1

[Event "*** SCC Grand Prix: Titled Tuesday Blitz"]
[Site "Chess.com"]
[Date "2020.08.11"]
[Round "1"]
[White "redbaron8888"]
[Black "abhidabhi"]
[Result "1/2-1/2"]
[WhiteElo "2407"]
[BlackElo "2786"]
[TimeControl "180+1"]
[EndTime "10:07:10 PDT"]
[Termination "Game drawn by repetition"]

1. d4 {[%clk 0:03:00.9]} 1... Nf6 {[%clk 0:02:59.7]} 2. c4 {[%clk 0:03:00.4]}
2... g6 {[%clk 0:02:59.8]} 3. Nc3 {[%clk 0:02:59]} 3... c5 {[%clk 0:02:59.8]} 4.
d5 {[%clk 0:02:58.8]} 4... e5 {[%clk 0:02:59]} 5. dxe6 {[%clk 0:02:53.3]} 5...
fxe6 {[%clk 0:02:56.4]} 6. e4 {[%clk 0:02:52.6]} 6... Nc6 {[%clk 0:02:56.6]} 7.
Nf3 {[%clk 0:02:50.7]} 7... Bg7 {[%clk 0:02:54.4]} 8. Qd6 {[%clk 0:02:33.2]}
8... Qe7 {[%clk 0:02:39.2]} 9. Qxe7+ {[%clk 0:02:32.1]} 9... Kxe7 {[%clk
0:02:38.3]} 10. Bf4 {[%clk 0:02:10.2]} 10... d6 {[%clk 0:02:29.9]} 11. O-O-O
{[%clk 0:02:08.6]} 11... Nd4 {[%clk 0:02:28.1]} 12. e5 {[%clk 0:02:02.4]} 12...
dxe5 {[%clk 0:02:09.8]} 13. Nxe5 {[%clk 0:02:01.6]} 13... Nd7 {[%clk 0:01:47.4]}
14. Bg5+ {[%clk 0:01:57.4]} 14... Ke8 {[%clk 0:01:45.2]} 15. Nd3 {[%clk
0:01:49.3]} 15... b6 {[%clk 0:01:27]} 16. Ne4 {[%clk 0:01:48.4]} 16... Ne5
{[%clk 0:01:19.1]} 17. Nxe5 {[%clk 0:01:36.9]} 17... Bxe5 {[%clk 0:01:18.8]} 18.
f4 {[%clk 0:01:34.9]} 18... Bg7 {[%clk 0:01:17.9]} 19. Bd3 {[%clk 0:01:25.7]}
19... Rf8 {[%clk 0:01:05.3]} 20. g3 {[%clk 0:01:23.1]} 20... Kd7 {[%clk
0:00:58.1]} 21. Rhe1 {[%clk 0:01:20.5]} 21... Bb7 {[%clk 0:00:58.2]} 22. Nc3
{[%clk 0:01:18.5]} 22... Rae8 {[%clk 0:00:57.2]} 23. Be4 {[%clk 0:01:17.6]}
23... Kc8 {[%clk 0:00:55.5]} 24. Bxb7+ {[%clk 0:01:15.2]} 24... Kxb7 {[%clk
0:00:56.4]} 25. Re4 {[%clk 0:01:13.3]} 25... h6 {[%clk 0:00:53.7]} 26. Bh4
{[%clk 0:01:12.9]} 26... Kc6 {[%clk 0:00:51.9]} 27. a4 {[%clk 0:01:07.1]} 27...
Nf5 {[%clk 0:00:49]} 28. Nb5 {[%clk 0:01:05.1]} 28... a6 {[%clk 0:00:48.4]} 29.
Nc3 {[%clk 0:00:53.9]} 29... Bxc3 {[%clk 0:00:47.6]} 30. bxc3 {[%clk 0:00:53.8]}
30... Nxh4 {[%clk 0:00:47.4]} 31. gxh4 {[%clk 0:00:54.6]} 31... Rf6 {[%clk
0:00:46.1]} 32. Rde1 {[%clk 0:00:48.2]} 32... Kd6 {[%clk 0:00:44.6]} 33. Kd2
{[%clk 0:00:48.7]} 33... Ref8 {[%clk 0:00:44.2]} 34. Ke3 {[%clk 0:00:48.8]}
34... Rf5 {[%clk 0:00:44.7]} 35. Rd1+ {[%clk 0:00:48.5]} 35... Ke7 {[%clk
0:00:44.5]} 36. Rb1 {[%clk 0:00:47.3]} 36... Rb8 {[%clk 0:00:43.2]} 37. a5
{[%clk 0:00:46.4]} 37... b5 {[%clk 0:00:43.4]} 38. cxb5 {[%clk 0:00:42]} 38...
axb5 {[%clk 0:00:43.3]} 39. a6 {[%clk 0:00:41.8]} 39... c4 {[%clk 0:00:40.7]}
40. Re5 {[%clk 0:00:38.7]} 40... Kd6 {[%clk 0:00:33.4]} 41. a7 {[%clk
0:00:36.5]} 41... Ra8 {[%clk 0:00:33.4]} 42. Rbxb5 {[%clk 0:00:34.8]} 42... Rxa7
{[%clk 0:00:29.2]} 43. Rb6+ {[%clk 0:00:33.6]} 43... Kd7 {[%clk 0:00:28.6]} 44.
Rbxe6 {[%clk 0:00:33.6]} 44... Ra3 {[%clk 0:00:27.6]} 45. Re7+ {[%clk
0:00:32.8]} 45... Kd6 {[%clk 0:00:27]} 46. R7e6+ {[%clk 0:00:30.6]} 46... Kd7
{[%clk 0:00:27.2]} 47. Re7+ {[%clk 0:00:27.9]} 47... Kd6 {[%clk 0:00:27.2]} 48.
R7e6+ {[%clk 0:00:27.1]} 48... Kd7 {[%clk 0:00:27.5]} 1/2-1/2